Cogmind - Beta 16 @@@ ROGUE MODE // 2025.10.27 @ 05:01:27 Player: Kotyk77 Result: Destroyed by H-88 Terminator with Heavy Machine Gun Performance ------------- Evolutions (8) 4000 Regions Visited (14) 2800 Robots Destroyed (144) 720 Value Destroyed (5421) 5421 Prototype IDs (53) 1060 Alien Tech Used (0) 0 Bonus (1556) 1556 TOTAL SCORE: 15557 Bonus ------- Triggered Max Security 1000 High Alert Combat Kills 88 Follower Combat Kills 168 Aligned with FarCom 300 Cogmind --------- Core Integrity 0/1450 Matter 1/300 Energy 18/100 System Corruption 16% Temperature Cool (0) Movement Core (150) Ox2 Location -2/Testing Parts ------- > --- POWER (2) -------- (None) > --- PROPULSION (4) --- Field Propulsion Array > --- UTILITY (14) ----- Advanced Gravity Neutralizer Machine Analyzer Advanced Signal Interpreter Advanced Target Analyzer Advanced Target Analyzer > --- WEAPON (3) ------- Heavy Quantum Rifle > --- INVENTORY (5) ---- Advanced Melee Analysis Suite Advanced ECM Suite Advanced Recalibrator Heavy Hardcell Cannon Peak State ------------ > --- POWER ------------ Particle Reactor Micro Antimatter Reactor > --- PROPULSION ------- Biometal Medium Treads Armored Huge Wheel Centrium Wheel > --- UTILITY ---------- Large Storage Unit Machine Analyzer Advanced Visual Processing Unit Enhanced Optical Array Advanced Signal Interpreter Long-range Terrain Scanner Advanced Targeting Computer Advanced Target Analyzer Advanced Target Analyzer Advanced Recoil Stabilizer Advanced Force Field Hacking Suite Improved System Shield Advanced Recalibrator > --- WEAPON ----------- Improved KE Penetrator Improved KE Penetrator Improved KE Penetrator > --- INVENTORY -------- Medium Treads Centrium Leg Wheel Experimental Cooling System Improved Trap Scanner Advanced Target Analyzer Energy Filter Improved Kinecellerator Advanced ECM Suite Hacking Suite Hacking Suite Enhanced Quantum Rifle Hardcell Cannon Heavy Hardcell Cannon [Rating: 139] Favorites ----------- Power Heavy Ion Engine Engine Heavy Ion Engine Power Core Micro Fission Core Reactor Particle Reactor Propulsion Wheel Treads Biometal Medium Treads Wheel Wheel Flight Unit Field Propulsion Array Utility Hacking Suite Device Sensor Array Storage Large Storage Unit Processor Machine Analyzer Hackware Hacking Suite Protection Layered Medium Armor Plating Weapon Great Maul Energy Gun AWS/Thermal Energy Cannon Nova Cannon Ballistic Gun Improved KE Penetrator Ballistic Cannon Linear Accelerator Launcher Rocket Launcher Special Weapon Plasma Cutter Impact Weapon Great Maul Slashing Weapon Chainsword Build | -11 -10 -10 -9 -9 -9 -8 -8 -7 -6 -5 -4 -3 -2 -2 ------- Run | Yrd Mat Min Mat Min Exi Min Mat Fac Fac Fac Fac Res Res Tes Slots Evolved 16 | . . . 2 . . . 2 2 2 2 2 2 2 . Power 1 | . . . . . . . . . . 1 . . . . Propulsion 2 | . . . . . . . . 1 . . 1 . . . Utility 12 | . . . 2 . . . 1 1 2 1 1 2 2 . Weapon 1 | . . . . . . . 1 . . . . . . . Parts Attached 148 | 7 9 10 14 . . . 16 8 15 6 16 22 20 5 Power 24 | 1 2 1 3 . . . 1 1 1 2 4 3 4 1 Engine 11 | 1 2 1 3 . . . 1 . 1 1 1 . . . Core 5 | . . . . . . . . 1 . 1 3 . . . Reactor 8 | . . . . . . . . . . . . 3 4 1 Propulsion 31 | 2 1 5 1 . . . 4 3 4 . 3 4 3 1 Treads 2 | . . . . . . . . . . . . 2 . . Leg . | . . . . . . . . . . . . . . . Wheel 26 | 2 1 5 1 . . . 4 3 4 . 3 2 1 . Hover . | . . . . . . . . . . . . . . . Flight 3 | . . . . . . . . . . . . . 2 1 Utility 53 | 2 2 2 6 . . . 6 2 9 3 4 8 9 . Device 19 | 1 1 1 1 . . . 1 . 2 . 2 2 8 . Storage 4 | 1 1 . 2 . . . . . . . . . . . Processor 11 | . . . 1 . . . 1 . 2 . 1 5 1 . Hackware 5 | . . . . . . . 2 1 1 1 . . . . Protection 14 | . . 1 2 . . . 2 1 4 2 1 1 . . Artifact . | . . . . . . . . . . . . . . . Weapon 40 | 2 4 2 4 . . . 5 2 1 1 5 7 4 3 Energy Gun 6 | 1 . 2 1 . . . 1 . . . . . . 1 Energy Cannon 2 | . . . . . . . . . . . . . 2 . Ballistic Gun 15 | 1 1 . 1 . . . 1 . 1 1 5 4 . . Ballistic Cannon 6 | . . . . . . . . 1 . . . 3 2 . Launcher 4 | . 1 . 2 . . . . . . . . . . 1 Special Weapon 2 | . 2 . . . . . . . . . . . . . Impact Weapon 3 | . . . . . . . 3 . . . . . . . Slashing Weapon 2 | . . . . . . . . 1 . . . . . 1 Piercing Weapon . | . . . . . . . . . . . . . . . Special Melee Weapon . | . . . . . . . . . . . . . . . Unidentified Prototypes 12 | . . . 1 . . . 1 1 . . 1 2 2 4 Parts Lost 60 | . . 7 2 . . . . 2 1 3 5 10 26 4 Power 11 | . . 1 . . . . . 1 . 1 2 3 3 . Propulsion 14 | . . 3 1 . . . . 1 . . 1 2 5 1 Utility 20 | . . 1 . . . . . . 1 1 1 2 14 . Weapon 15 | . . 2 1 . . . . . . 1 1 3 4 3 Highest Loss Streak 16 | . . 6 1 . . . . 1 1 2 2 7 16 4 To Critical Strikes 2 | . . . . . . . . . . . . . 1 1 Average Backups 13 | 3 10 14 14 15 14 13 14 14 13 13 14 12 10 3 Power 1 | . 1 2 3 3 3 3 3 2 1 1 1 . . . Propulsion 2 | 1 2 1 2 3 3 3 2 1 1 2 1 1 1 . Utility 6 | . 4 6 5 6 5 4 3 6 8 8 8 8 7 3 Weapon 2 | . 2 3 2 3 3 3 4 3 1 1 2 2 2 . Tool/Special . | . . . . . . . . . . . . . . . Unused Backups 49 | . 6 2 7 . 1 . 9 . 4 . 6 4 8 2 Power 6 | . . . 5 . . . 1 . . . . . . . Propulsion 7 | . 2 2 . . . . 1 . . . 1 . 1 . Utility 22 | . 2 . 1 . 1 . 2 . 4 . 3 1 6 2 Weapon 14 | . 2 . 1 . . . 5 . . . 2 3 1 . Tool/Special . | . . . . . . . . . . . . . . . Average Slot Usage (%) 90 | . 99 97 98 100 100 100 90 92 94 93 87 87 82 32 Engine 6 | . 14 14 11 11 11 11 9 5 6 9 1 1 . . Reactor 1 | . . . . . . . . . . . . 5 6 . Wheel 15 | . 28 27 21 22 22 22 18 22 14 11 9 8 6 . Device 5 | . 14 11 11 11 11 11 7 . 2 . 2 1 13 4 Storage 7 | . 14 14 11 11 11 11 9 7 6 5 5 4 3 . Processor 16 | . . . 10 11 11 11 14 15 15 17 17 25 28 17 Hackware 12 | . . . . . . . 6 18 21 23 21 17 8 . Protection 5 | . . 2 11 11 11 11 8 3 6 4 4 5 . . Energy Gun 4 | . 1 25 12 . . . 8 5 . . . . . 2 Ballistic Gun 4 | . 13 1 3 11 11 11 . . 4 3 9 1 9 . Ballistic Cannon 1 | . . . . . . . . 1 1 . . 5 . 1 Launcher 1 | . 5 . 5 11 11 11 . . . 1 . . . . Impact Weapon 3 | . . . . . . . 8 7 6 5 4 1 . . Slashing Weapon 1 | . . . . . . . . 1 6 5 1 . . . Peak Build Rating 139 | 9 10 9 17 17 18 19 38 43 54 69 85 121 139 94 Average Rating 57 | 4 8 8 13 17 17 18 36 39 47 62 78 103 118 66 On Entrance 35 | . 9 9 9 17 17 18 19 38 31 52 69 82 121 47 Avg Prop Armor Cover (%) 7 | . . . . . . . . . . . 6 6 7 16 Naked Turns . | . . . . . . . . . . . . . . . Heaviest Build 93 | 13 29 31 42 41 41 42 47 43 56 55 56 86 93 27 Greatest Support 56 | 26 26 26 20 20 20 20 20 42 48 44 56 56 54 24 Greatest Overweight (x) 13 | . 1 3 4 2 2 2 2 1 2 1 1 2 13 8 Average Overweight (x) . | . . 1 1 2 2 2 1 . . . . . . 1 Largest Inventory Capacity 15 | 8 15 15 15 15 15 15 15 15 15 15 15 15 15 5 Average Capacity 14 | 5 10 15 15 15 15 15 15 15 15 15 15 15 12 5 Most Carried 15 | 6 15 15 15 15 15 15 15 15 15 15 15 15 15 5 Average Carried 13 | 3 10 14 14 15 14 14 14 14 14 14 14 14 11 4 Final Capacity 15 | 8 15 15 15 15 15 15 15 15 15 15 15 15 5 5 Final Carried 15 | 6 15 15 15 15 15 14 15 14 15 15 14 15 5 5 Class Distribution -------------------- 32% | Hacker-Mutant 27% | Mutant 11% | Hacker-Assassin 7% | Scavenger-Mutant 7% | Hacker-Skirmisher 7% | Hacker-Gunner 3% | Scavenger-Gunner Dominant Class ---------------- Mutant | -10/Materials Scavenger-Mutant | -10/Mines Mutant | -9/Materials Mutant | -9/Mines Mutant | -9/Exiles Mutant | -8/Mines Mutant | -8/Materials Hacker-Mutant | -7/Factory Hacker-Mutant | -6/Factory Hacker-Mutant | -5/Factory Hacker-Mutant | -4/Factory Hacker-Assassin | -3/Research Scavenger-Gunner | -2/Research Mutant | -2/Testing Resources | -11 -10 -10 -9 -9 -9 -8 -8 -7 -6 -5 -4 -3 -2 -2 ----------- Run | Yrd Mat Min Mat Min Exi Min Mat Fac Fac Fac Fac Res Res Tes Matter Collected 3709 | 244 210 236 283 16 . . 179 41 246 187 585 1030 391 61 Remotely . | . . . . . . . . . . . . . . . Salvage Created 5460 | 33 281 389 526 . . . 1194 162 425 223 837 788 495 107 Parts 305 | 4 27 25 26 . . . 63 12 27 13 31 40 35 2 Haulers Intercepted 6 | . 2 . 1 . . . 3 . . . . . . . Recyclers Shooed 7 | 1 . 2 . . . . 1 . 1 . . 1 1 . Parts Field Recycled . | . . . . . . . . . . . . . . . Retrieved Matter . | . . . . . . . . . . . . . . . Parts Self-Destructed . | . . . . . . . . . . . . . . . Prevented . | . . . . . . . . . . . . . . . Parts Restored . | . . . . . . . . . . . . . . . Kills | -11 -10 -10 -9 -9 -9 -8 -8 -7 -6 -5 -4 -3 -2 -2 ------- Run | Yrd Mat Min Mat Min Exi Min Mat Fac Fac Fac Fac Res Res Tes Combat Hostiles Destroyed 92 | . 7 4 11 . . . 20 5 4 8 10 15 7 1 Melee 10 | . . . . . . . 2 3 3 1 . 1 . . Guns 54 | . 3 4 8 . . . 17 1 1 3 10 . 7 . Cannons 15 | . 1 . . . . . . . . . . 14 . . AOE 11 | . 3 . 3 . . . . . . 4 . . . 1 Classes Destroyed 15 | 1 7 1 1 . . . 2 1 . . 1 . . 1 Worker 11 | . 2 2 2 . . . 3 . . . . 2 . . Builder 5 | . 1 2 . . . . . . . . . 1 1 . Tunneler 4 | 2 . . . . . . . . . . . 2 . . Hauler 6 | . 2 . 1 . . . 3 . . . . . . . Recycler 7 | . . 2 . . . . . . 2 . 2 1 . . Mechanic 1 | . . . . . . . . . . . . . . 1 Operator 7 | . 2 . 1 . . . 3 . 1 . . . . . Watcher 11 | . 1 . . . . . 4 . 2 . . 4 . . Swarmer 20 | . 3 . . . . . 3 3 2 5 4 . . . Grunt 26 | . 4 4 7 . . . 10 1 . . . . . . Brawler 1 | . . . . . . . 1 . . . . . . . Duelist 1 | . . . . . . . 1 . . . . . . . Sentry 13 | . . . 4 . . . 5 . . 1 . 2 1 . Hunter 4 | . . . . . . . . . . . 2 . 1 1 Programmer 27 | . . . . . . . . 1 2 2 4 13 5 . Best Kill Streak 5 | 1 4 3 3 . . . 4 3 3 5 4 5 4 2 Combat Bots Only 5 | . 3 2 3 . . . 3 3 2 5 4 5 3 1 Max Kills in Single Turn 3 | 1 2 1 2 . . . 1 1 1 3 1 3 1 1 Gunslinging . | . . . . . . . . . . . . . . . Exploded 3 | . 1 . 2 . . . . . . 3 . . . 1 Melee 1 | . . . . . . . 1 1 1 1 . 1 . . Uniques/NPCs Destroyed . | . . . . . . . . . . . . . . . Combat | -11 -10 -10 -9 -9 -9 -8 -8 -7 -6 -5 -4 -3 -2 -2 -------- Run | Yrd Mat Min Mat Min Exi Min Mat Fac Fac Fac Fac Res Res Tes Hostile Shots Fired 968 | . 32 47 40 . . . 34 29 24 71 115 152 361 63 Missed 307 | . 9 8 10 . . . 8 10 6 26 32 39 134 25 Hits 661 | . 23 39 30 . . . 26 19 18 45 83 113 227 38 Melee 1 | . . . . . . . 1 . . . . . . . Projectile 660 | . 23 39 30 . . . 25 19 18 45 83 113 227 38 AOE 1 | . . . . . . . . . 1 . . . . . Critical Strikes 36 | . 1 4 . . . . . . . 3 6 9 11 2 Actively Blocked 1 | . . . . . . . . . . . . 1 . . Part Disruptions 5 | . . . . . . . . . . . 1 4 . . Damage Taken 11728 | . 229 499 384 . . . 357 215 242 972 1290 2764 4093 683 Core 2294 | . 45 113 88 . . . 38 46 37 66 92 315 1242 212 Absorbed by Shields 727 | . . 43 20 . . . 37 . 79 . . . 548 . Redirected to Shielding 116 | . . . . . . . . . . . . 116 . . Regen/Repaired (Parts) 241 | . . . . . . . . . . . 241 . . . Core Remaining (%) 83 | 100 . 36 . . . 78 93 93 95 93 92 75 . . Volleys Fired 363 | 12 37 46 56 . . . 3 3 9 21 40 80 50 6 Largest 3 | 1 2 2 2 . . . 1 1 1 1 3 2 3 2 Hottest 179 | 20 120 90 100 . . . 23 37 25 33 101 87 179 148 Shots Fired 577 | 12 53 62 75 . . . 67 7 9 21 82 88 95 6 Gun 444 | 12 31 62 73 . . . 67 4 9 18 82 8 77 1 Cannon 103 | . . . . . . . . 3 . . . 80 18 2 Launcher 17 | . 9 . 2 . . . . . . 3 . . . 3 Special 13 | . 13 . . . . . . . . . . . . . Kinetic 383 | 12 31 19 31 . . . 3 3 9 18 82 88 85 2 Thermal 173 | . 13 43 42 . . . 64 4 . . . . 6 1 Explosive 17 | . 9 . 2 . . . . . . 3 . . . 3 Electromagnetic 4 | . . . . . . . . . . . . . 4 . Robot Hit Streak 20 | 4 8 17 19 . . . 20 11 5 7 11 19 11 1 Robot Miss Streak 6 | 2 2 3 4 . . . 2 1 3 3 6 4 3 1 Penetration Max 1 | . . . . . . . . . . . 1 1 1 . Secondary Targets 2 | . . . . . . . . . . . . . 2 . Max Gunslinging Chain 1 | . . . . . . . . . . . . . 1 . Autonomous 69 | . . . . . . . 64 5 . . . . . . Shots Hit Robots 447 | 9 22 40 55 . . . 79 10 23 24 56 68 57 4 Core Hits 211 | 2 23 21 30 . . . 32 5 12 13 20 28 21 4 Critical Kills 11 | . . . . . . . 1 . . . 4 1 5 . Critical Parts Destroyed 28 | . . . . . . . 6 . . 1 6 1 14 . Critical Strikes 56 | . 1 2 2 . . . 7 . 3 2 10 8 19 2 Burn 4 | . . 2 2 . . . . . . . . . . . Destroy 28 | . . . . . . . . . . . 9 . 19 . Blast 6 | . . . . . . . . . . . . 6 . . Smash 11 | . . . . . . . 7 . . 1 1 2 . . Sever 7 | . 1 . . . . . . . 3 1 . . . 2 Melee Attacks 154 | . . . . . . . 40 21 37 19 17 17 . 3 Impact 93 | . . . . . . . 40 13 4 4 15 17 . . Slashing 61 | . . . . . . . . 8 33 15 2 . . 3 Piercing . | . . . . . . . . . . . . . . . Sneak Attacks 17 | . . . . . . . 11 . 4 . 2 . . . Combat Hostiles 2 | . . . . . . . 1 . 1 . . . . . Follow-up Attacks 3 | . . . . . . . . 1 1 1 . . . . Damage Inflicted 16362 | 116 626 454 967 . . . 3153 323 927 1067 1416 4754 1935 624 Guns 6908 | 116 175 454 818 . . . 1701 120 139 310 1188 140 1747 . Cannons 4216 | . . . . . . . . 25 . . . 4020 171 . Explosions 1547 | . 353 . 149 . . . . . . 322 . 307 . 416 Melee 3560 | . . . . . . . 1452 178 788 435 228 271 . 208 Ramming 37 | . 4 . . . . . . . . . . 16 17 . Kinetic 8563 | 116 175 135 468 . . . 46 25 139 310 1188 4160 1801 . Thermal 2655 | . 94 319 350 . . . 1655 120 . . . . 117 . Explosive 1547 | . 353 . 149 . . . . . . 322 . 307 . 416 Electromagnetic . | . . . . . . . . . . . . . . . Impact 2184 | . . . . . . . 1452 75 57 101 228 271 . . Slashing 1376 | . . . . . . . . 103 731 334 . . . 208 Piercing . | . . . . . . . . . . . . . . . Highest Corruption 16 | . . . . . . . . 1 . . 6 13 14 16 Average Corruption 5 | . . . . . . . . 1 . . 2 5 5 14 Corruption Purged 10 | . . . . . . . . . . . . 10 . . Corruption Blocked 8 | . . . . . . . . . . 4 4 . . . Effects 94 | . . . . . . . . . . . 13 50 22 9 Message Errors 20 | . . . . . . . . . . . 3 9 7 1 Matter Fused 19 | . . . . . . . . . . . 4 10 4 1 Heat Flow Errors 15 | . . . . . . . . . . . 2 11 1 1 Energy Discharges 7 | . . . . . . . . . . . 1 4 . 2 Parts Rejected 2 | . . . . . . . . . . . . 1 1 . Data Loss (minor) 10 | . . . . . . . . . . . . 6 2 2 Data Loss (major) 4 | . . . . . . . . . . . 1 2 1 . Misfires 5 | . . . . . . . . . . . 1 2 2 . Alerts 3 | . . . . . . . . . . . . 2 . 1 Misdirections 4 | . . . . . . . . . . . . 2 2 . Weapon Failures 5 | . . . . . . . . . . . 1 1 2 1 Overload Shots . | . . . . . . . . . . . . . . . Overflow Damage 1445 | . 6 . . . . . 537 9 71 35 127 628 . 32 Projectiles 471 | . . . . . . . . . . . . 471 . . Explosions 63 | . 6 . . . . . . . . 14 . 21 . 22 Melee 911 | . . . . . . . 537 9 71 21 127 136 . 10 Knockbacks 34 | . . . . . . . 4 . 1 . 3 25 1 . Impact 8 | . . . . . . . 4 . 1 . 2 1 . . Kinetic 24 | . . . . . . . . . . . . 23 1 . Secondary 2 | . . . . . . . . . . . 1 1 . . Self-Inflicted Damage 157 | . 22 . . . . . . . . 42 . 8 8 77 Shots 4 | . 1 . . . . . . . . 1 . . . 2 Rammed 7 | . 1 . . . . . . . . . . 3 3 . Targets Rammed 7 | . 1 . . . . . . . . . . 3 3 . Kicked . | . . . . . . . . . . . . . . . Crushed . | . . . . . . . . . . . . . . . Highest Temperature 426 | . 20 384 100 . . . . . . 4 172 271 212 426 Average Temperature 71 | . 10 111 33 . . . . . . 4 44 66 84 193 Received Heat Transfer 1270 | . 48 349 141 . . . 120 24 9 183 81 117 198 . Effects 6 | . . 5 . . . . . . . . . . . 1 Shutdowns 1 | . . 1 . . . . . . . . . . . . Interference 3 | . . 3 . . . . . . . . . . . . Damage (minor) 2 | . . 1 . . . . . . . . . . . 1 Siege Activations . | . . . . . . . . . . . . . . . Martial Activations . | . . . . . . . . . . . . . . . Shielding Activations . | . . . . . . . . . . . . . . . Robots Disrupted . | . . . . . . . . . . . . . . . Combat Hostiles . | . . . . . . . . . . . . . . . Robots Corrupted 6 | . . . . . . . 3 1 . . 2 . . . Combat Hostiles 2 | . . . . . . . 1 1 . . . . . . Parts Fried 12 | . . . . . . . 6 2 . . 4 . . . Impact Corruptions 28 | . . . . . . . 17 1 1 1 4 4 . . Robots Melted . | . . . . . . . . . . . . . . . Combat Hostiles . | . . . . . . . . . . . . . . . Parts Melted 9 | . 1 4 . . . . 4 . . . . . . . Heat Transferred 4658 | . 248 1014 1065 . . . 2072 148 . . . . 111 . Parts Sabotaged . | . . . . . . . . . . . . . . . Parts Stolen . | . . . . . . . . . . . . . . . Parts Stripped . | . . . . . . . . . . . . . . . Power Chain Reactions . | . . . . . . . . . . . . . . . Alert | -11 -10 -10 -9 -9 -9 -8 -8 -7 -6 -5 -4 -3 -2 -2 ------- Run | Yrd Mat Min Mat Min Exi Min Mat Fac Fac Fac Fac Res Res Tes Maximum Alert Level 5 | . . . 1 . . . 1 . . . . . 2 5 Low Security (%) 93 | 100 100 100 61 100 . 100 92 100 100 100 100 100 93 . Level 1 4 | . . . 38 . . . 7 . . . . . 4 . Level 2 . | . . . . . . . . . . . . . 2 . Level 3 . | . . . . . . . . . . . . . . . Level 4 . | . . . . . . . . . . . . . . . Level 5 . | . . . . . . . . . . . . . . . High Security . | . . . . . . . . . . . . . . . Max Security 1 | . . . . . . . . . . . . . . 99 Peak Influence 1720 | 5 140 39 270 85 . . 257 75 189 133 105 171 423 1720 Initial 231 | . 3 39 . 85 . . . 59 24 51 45 21 90 231 Average 83 | 1 43 5 141 62 . . 81 16 65 69 25 36 58 1622 Influence Increases 4461 | 10 291 130 689 . . . 648 200 337 278 335 526 878 139 Destroy 0b10 Robot/C 1960 | . 140 80 340 . . . 400 100 80 160 200 300 140 20 Destroy 0b10 Robot/NC 270 | 10 40 30 30 . . . 65 . 25 . 10 50 5 5 Destroy Leader 506 | . 26 20 114 . . . 104 20 34 30 40 78 40 . Allied During Kill 30 | . . . 30 . . . . . . . . . . . Successful Hack 129 | . 11 . 19 . . . 11 23 53 . 12 . . . Disable Machine 195 | . 30 . 30 . . . . . . . 45 30 30 30 Destroy Structure 396 | . 44 . 66 . . . 23 12 10 28 28 68 33 84 Partial Spotted 60 | . . . 15 . . . . 15 30 . . . . . Lose Combat Pursuer 915 | . . . 45 . . . 45 30 105 60 . . 630 . Influence Decreases 4131 | 5 196 230 468 186 35 . 516 281 281 292 386 407 627 221 Entered New Map 711 | . 2 61 . 136 35 . . 73 27 56 48 21 71 181 Time Decay 2686 | 5 194 109 388 50 . . 366 188 244 206 295 305 336 . Lost Part 522 | . . 60 20 . . . . 20 10 30 43 79 220 40 Lost Ally 60 | . . . 60 . . . . . . . . . . . Purge Threat 152 | . . . . . . . 150 . . . . 2 . . Squads Dispatched 41 | . 2 . 4 . . . 1 3 2 1 4 5 7 12 Investigation 4 | . . . 2 . . . . 1 . . . . 1 . Extermination 15 | . . . . . . . . 1 2 1 3 5 3 . Reinforcement 10 | . 2 . 2 . . . 1 1 . . 1 . 3 . Assault 12 | . . . . . . . . . . . . . . 12 Garrison . | . . . . . . . . . . . . . . . Intercept . | . . . . . . . . . . . . . . . Searches Triggered . | . . . . . . . . . . . . . . . Construction Impeded 1 | . . . . . . . . . . . 1 . . . Haulers Reinforced . | . . . . . . . . . . . . . . . Active Scanning Responses . | . . . . . . . . . . . . . . . Cargo Convoy Interrupts . | . . . . . . . . . . . . . . . Stealth | -11 -10 -10 -9 -9 -9 -8 -8 -7 -6 -5 -4 -3 -2 -2 --------- Run | Yrd Mat Min Mat Min Exi Min Mat Fac Fac Fac Fac Res Res Tes Distress Signals 11 | . . . 1 . . . 3 1 . . 2 1 3 . Communications Jammed . | . . . . . . . . . . . . . . . Distress Signals . | . . . . . . . . . . . . . . . Times Spotted 228 | . 12 4 24 . . . 24 11 18 9 18 33 69 6 Peak Tracking Total 15 | . 4 2 4 . . . 3 3 4 5 5 9 15 3 Tactical Retreats 25 | . . . 3 . . . 3 2 3 1 . . 13 . Traps | -11 -10 -10 -9 -9 -9 -8 -8 -7 -6 -5 -4 -3 -2 -2 ------- Run | Yrd Mat Min Mat Min Exi Min Mat Fac Fac Fac Fac Res Res Tes Traps Triggered 10 | . 1 . 1 . . . 1 2 1 2 . . 1 1 Indirectly . | . . . . . . . . . . . . . . . Trap Hack Attempts . | . . . . . . . . . . . . . . . Triggered . | . . . . . . . . . . . . . . . Disarmed 4 | . . . 4 . . . . . . . . . . . Reprogrammed . | . . . . . . . . . . . . . . . Reused . | . . . . . . . . . . . . . . . Traps Extracted . | . . . . . . . . . . . . . . . Installed . | . . . . . . . . . . . . . . . Triggered . | . . . . . . . . . . . . . . . Machines | -11 -10 -10 -9 -9 -9 -8 -8 -7 -6 -5 -4 -3 -2 -2 ---------- Run | Yrd Mat Min Mat Min Exi Min Mat Fac Fac Fac Fac Res Res Tes Machines Disabled 13 | . 2 . 2 . . . . . . . 3 2 2 2 Max in Single Turn 1 | . 1 . . . . . . . . . 1 1 1 1 Garrison Access 3 | . . . . . . . 1 . 1 . . 1 . . Machines Repaired . | . . . . . . . . . . . . . . . Machines Dismantled 1 | . 1 . . . . . . . . . . . . . Machines Sabotaged . | . . . . . . . . . . . . . . . Overloaded Fab Kills . | . . . . . . . . . . . . . . . Hacking | -11 -10 -10 -9 -9 -9 -8 -8 -7 -6 -5 -4 -3 -2 -2 --------- Run | Yrd Mat Min Mat Min Exi Min Mat Fac Fac Fac Fac Res Res Tes Machines Accessed 49 | . 2 . 5 . 2 . 10 4 9 3 8 5 1 . Terminals 34 | . 2 . 5 . . . 7 3 7 2 5 2 1 . Fabricators 2 | . . . . . . . . . . 1 1 . . . Repair Stations 2 | . . . . . . . . . . . 1 1 . . Recycling Units . | . . . . . . . . . . . . . . . Scanalyzers 6 | . . . . . . . 2 1 1 . 1 1 . . Garrison Access 3 | . . . . . . . 1 . 1 . . 1 . . Total Hacks 175 | . 7 . 16 . 5 . 44 16 22 8 39 17 1 . Successful 117 | . 2 . 11 . 5 . 32 7 16 3 31 10 . . Failed 54 | . 5 . 4 . . . 11 9 6 5 7 6 1 . Catastrophic 5 | . 1 . . . . . 1 . 2 . . 1 . . Database Lockouts 4 | . . . 1 . . . 1 . . . 1 1 . . Manual 63 | . 6 . 11 . 1 . 15 9 3 5 10 3 . . Terminals 113 | . 7 . 16 . . . 24 12 15 7 22 9 1 . Fabricators 2 | . . . . . . . . . . 1 1 . . . Repair Stations 7 | . . . . . . . . . . . 4 3 . . Recycling Units . | . . . . . . . . . . . . . . . Scanalyzers 45 | . . . . . . . 19 4 6 . 12 4 . . Garrison Access 3 | . . . . . . . 1 . 1 . . 1 . . Terminal Hacks 55 | . 2 . 8 . 5 . 8 5 10 1 10 6 . . Record 8 | . . . 1 . 4 . . . . . 3 . . . Part Schematic 1 | . . . . . . . . . . . 1 . . . Robot Schematic 1 | . . . . . . . . . . . 1 . . . Robot Analysis 6 | . 2 . 1 . . . . 2 1 . . . . . Prototype ID Bank 10 | . . . 2 . . . 3 1 3 . . 1 . . Open Door 1 | . . . . . . . . . 1 . . . . . Level Access Points 6 | . . . 1 . . . 1 1 1 1 . 1 . . Branch Access Points 2 | . . . . . . . . . . . 1 1 . . Emergency Access Points 2 | . . . . . . . . . 1 . 1 . . . Terminal Index 5 | . . . 1 . . . 1 1 1 . 1 . . . Repair Station Index 1 | . . . . . . . . . . . 1 . . . Scanalyzer Index 1 | . . . . . . . . . 1 . . . . . Alert Level 1 | . . . . . . . . . . . . 1 . . Unreport Threat 3 | . . . . . . . 1 . . . . 2 . . Locate Traps 3 | . . . 1 . . . . . 1 . 1 . . . Disarm Traps 1 | . . . 1 . . . . . . . . . . . Assault Status 1 | . . . . . . . 1 . . . . . . . Recall Investigation 1 | . . . . . . . 1 . . . . . . . Proto ID Catalog 1 | . . . . . 1 . . . . . . . . . Fabricator Hacks 2 | . . . . . . . . . . 1 1 . . . Load Schematic 1 | . . . . . . . . . . . 1 . . . Build 1 | . . . . . . . . . . 1 . . . . Repair Station Hacks 4 | . . . . . . . . . . . 4 . . . Scan Component 2 | . . . . . . . . . . . 2 . . . Repair 2 | . . . . . . . . . . . 2 . . . Recycling Unit Hacks . | . . . . . . . . . . . . . . . Scanalyzer 39 | . . . . . . . 19 . 5 . 12 3 . . Insert Component 13 | . . . . . . . 8 . 1 . 4 . . . Analyze 16 | . . . . . . . 11 . 1 . 4 . . . Retrieve Study 10 | . . . . . . . . . 3 . 4 3 . . Garrison Access Hacks 3 | . . . . . . . 1 . 1 . . 1 . . Seal Access 3 | . . . . . . . 1 . 1 . . 1 . . Unauthorized Hacks 14 | . . . 3 . . . 4 2 . 1 4 . . . Terminals 14 | . . . 3 . . . 4 2 . 1 4 . . . Botnet 14 | . . . 3 . . . 4 2 . 1 4 . . . Fabricators . | . . . . . . . . . . . . . . . Repair Stations . | . . . . . . . . . . . . . . . Recycling Units . | . . . . . . . . . . . . . . . Scanalyzers . | . . . . . . . . . . . . . . . Garrison Access . | . . . . . . . . . . . . . . . Data Cores Recovered 3 | . . . . . . . 2 . 1 . . . . . Used 1 | . . . . . . . 1 . . . . . . . Hacking Detections 35 | . 2 . 4 . . . 5 4 7 2 7 3 1 . Full Trace Events 2 | . . . 1 . . . . 1 . . . . . . Feedback Events . | . . . . . . . . . . . . . . . Feedback Blocked . | . . . . . . . . . . . . . . . Robot Schematics Acquired 1 | . . . . . . . . . . . 1 . . . Robots Built . | . . . . . . . . . . . . . . . Authchips . | . . . . . . . . . . . . . . . Time 152 | . . . . . . . . . . 152 . . . . Total Robot Build Rating . | . . . . . . . . . . . . . . . Part Schematics Acquired 13 | . . . . . . . 8 . 1 . 4 . . . Parts Built . | . . . . . . . . . . . . . . . Authchips . | . . . . . . . . . . . . . . . Time . | . . . . . . . . . . . . . . . Total Part Build Rating . | . . . . . . . . . . . . . . . Part Studies Acquired 10 | . . . . . . . . . 3 . 4 3 . . Parts Repaired 2 | . . . . . . . . . . . 2 . . . Time 82 | . . . . . . . . . . . 82 . . . Parts Recycled . | . . . . . . . . . . . . . . . Recycled Matter . | . . . . . . . . . . . . . . . Retrieved Matter . | . . . . . . . . . . . . . . . Retrieved Components . | . . . . . . . . . . . . . . . Parts Scanalyzed 12 | . . . . . . . 8 . 1 . 3 . . . Part Schematics Acquired 12 | . . . . . . . 8 . 1 . 3 . . . Parts Damaged 1 | . . . . . . . 1 . . . . . . . Bothacking | -11 -10 -10 -9 -9 -9 -8 -8 -7 -6 -5 -4 -3 -2 -2 ------------ Run | Yrd Mat Min Mat Min Exi Min Mat Fac Fac Fac Fac Res Res Tes Used RIF Installer . | . . . . . . . . . . . . . . . Robots Hacked . | . . . . . . . . . . . . . . . Non-combat . | . . . . . . . . . . . . . . . Combat . | . . . . . . . . . . . . . . . Robot Hacks Applied . | . . . . . . . . . . . . . . . Relay Couplers Released . | . . . . . . . . . . . . . . . Fabnet Peak Effective % . | . . . . . . . . . . . . . . . Robots Rewired . | . . . . . . . . . . . . . . . Allies Hacked . | . . . . . . . . . . . . . . . Hacks Repelled . | . . . . . . . . . . . . . . . Allies | -11 -10 -10 -9 -9 -9 -8 -8 -7 -6 -5 -4 -3 -2 -2 -------- Run | Yrd Mat Min Mat Min Exi Min Mat Fac Fac Fac Fac Res Res Tes Total Allies 3 | . . 3 . . . . . . . . . . . . Largest Group 3 | . . 3 3 . . . . . . . . . . . Highest-Rated Group 40 | . . 40 40 . . . . . . . . . . . Highest-Rated Ally 16 | . . 16 16 . . . . . . . . . . . Total Orders . | . . . . . . . . . . . . . . . Ally Attacks 58 | . . . 58 . . . . . . . . . . . Total Damage 703 | . . . 703 . . . . . . . . . . . Kills 8 | . . . 8 . . . . . . . . . . . Allies Corrupted . | . . . . . . . . . . . . . . . Allies Melted . | . . . . . . . . . . . . . . . Intel | -11 -10 -10 -9 -9 -9 -8 -8 -7 -6 -5 -4 -3 -2 -2 ------- Run | Yrd Mat Min Mat Min Exi Min Mat Fac Fac Fac Fac Res Res Tes Active Infowar (turns) 10956 | 9 678 468 622 106 252 41 1006 1136 1389 439 1229 2266 1091 224 Optics 3339 | . . . . . . . . . . . . 2265 1074 . Sensors 1918 | . 429 468 622 106 252 41 . . . . . . . . Terrain 1028 | 9 249 . . . . . . . . . . . 770 . Traps 1250 | . . . . . . . . . 320 26 86 619 199 . Machine Analysis 8780 | . . . . . . . 1006 1136 1389 439 1229 2266 1091 224 Robot Analysis Total 6 | . 2 . 1 . . . . 2 1 . . . . . Derelict Logs Recovered 2 | . . 1 . 1 . . . . . . . . . . Drone Launches . | . . . . . . . . . . . . . . . Drone Recoveries . | . . . . . . . . . . . . . . . Exploration | -11 -10 -10 -9 -9 -9 -8 -8 -7 -6 -5 -4 -3 -2 -2 ------------- Run | Yrd Mat Min Mat Min Exi Min Mat Fac Fac Fac Fac Res Res Tes Turns Passed 12257 | 79 678 585 948 106 252 91 1744 1136 1389 439 1229 2266 1091 224 Spaces Moved 8277 | 44 563 392 691 97 228 78 1023 676 945 267 845 1379 900 149 Core 259 | 3 . . . . . . . . . . . . 154 102 Treads . | . . . . . . . . . . . . . . . Legs . | . . . . . . . . . . . . . . . Wheels 7672 | 41 563 392 691 97 228 78 1023 676 945 267 845 1379 447 . Hover . | . . . . . . . . . . . . . . . Flight 346 | . . . . . . . . . . . . . 299 47 Fastest Speed 37 | 50 80 95 95 110 110 110 95 93 95 95 90 90 37 40 Average Speed 99 | 86 89 98 100 110 110 110 107 94 107 109 101 102 76 116 Slowest Speed 700 | 90 95 125 140 110 110 110 110 108 130 110 115 120 700 450 Overloaded Moves . | . . . . . . . . . . . . . . . Propulsion Burnouts . | . . . . . . . . . . . . . . . Robots Hopped 5 | . . . . . . . . . . . . . 5 . Potential Cave-ins 1 | . . . 1 . . . . . . . . . . . Cave-ins Triggered . | . . . . . . . . . . . . . . . Exploration Rate (%) 33 | 3 67 80 49 33 60 30 66 14 21 5 20 22 20 19 Regions Visited 14 Branch Regions 5 Pre-discovered Areas 2 | . . 1 . . 1 . . . . . . . . . Known Exits Taken 11 | . . . 1 1 1 1 1 1 1 1 1 1 1 . Unknown Exits Taken 3 | 1 1 1 . . . . . . . . . . . . Scrap Searched 2 | . . 1 . 1 . . . . . . . . . . Spaces Dug 69 | . . . . . . . 17 11 10 4 8 10 9 . Terrain Destroyed 248 | . 46 . 21 . . . 24 12 10 15 13 33 12 62 Melee 57 | . . . . . . . 17 11 10 4 8 7 . . Projectile 41 | . 1 . . . . . 7 1 . 1 4 15 11 1 AOE 148 | . 45 . 21 . . . . . . 10 . 11 . 61 Terrain Rammed . | . . . . . . . . . . . . . . . Walls Destroyed . | . . . . . . . . . . . . . . . Machines Disabled . | . . . . . . . . . . . . . . . Actions | -11 -10 -10 -9 -9 -9 -8 -8 -7 -6 -5 -4 -3 -2 -2 --------- Run | Yrd Mat Min Mat Min Exi Min Mat Fac Fac Fac Fac Res Res Tes Total 11547 | 69 673 533 873 96 230 83 1605 1143 1269 357 1119 2106 1205 186 Wait 2307 | . 25 71 85 . . 4 474 426 235 35 166 573 211 2 Move 8253 | 43 562 391 690 96 227 77 1022 675 944 266 844 1378 889 149 Hop 5 | . . . . . . . . . . . . . 5 . Pick Up 124 | 7 17 7 11 . 1 . 23 6 14 3 12 14 9 . Fast Attach 60 | 6 5 1 2 . . . . 1 1 5 8 14 10 7 Attach 52 | 1 1 6 3 . . . 2 6 4 4 5 9 10 1 Detach 9 | . 1 . . . . . 1 1 . . . 3 2 1 Swap 75 | . 6 6 11 . . 1 15 3 11 5 10 3 4 . Drop 129 | . 15 5 15 . 2 1 25 5 18 . 17 12 12 2 Fire 363 | 12 37 46 56 . . . 3 3 9 21 40 80 50 6 Melee 145 | . . . . . . . 40 17 33 18 17 17 . 3 Ram 7 | . 1 . . . . . . . . . . 3 3 . Kick . | . . . . . . . . . . . . . . . Crush . | . . . . . . . . . . . . . . . Escape Stasis 15 | . . . . . . . . . . . . . . 15 Rewire . | . . . . . . . . . . . . . . . Trap . | . . . . . . . . . . . . . . . Miscellaneous 3 | . 3 . . . . . . . . . . . . . Route ------- -11/Scrapyard -10/Materials (discovered 4 exits: *Mat x2 / [*Min x2]) -10/Mines -9/Materials (discovered 4 exits: *Mat x3 / *Min) -9/Mines -9/Exiles -8/Mines -8/Materials (discovered 3 exits: *Fac x3) -7/Factory (discovered 6 exits: *Fac x4 / *Sto / [*Low]) -6/Factory (discovered 5 exits: *Fac x4 / *Ext) -5/Factory (discovered 4 exits: *Fac x4) -4/Factory (discovered 3 exits: *Res / Upp x2) -3/Research (discovered 6 exits: *Res x3 / Arm / Qua x2) -2/Research (discovered 2 exits: *Tes x2) -2/Testing History --------- Turn | Location | Event 2 | -11/Scrapyard | Met Revision 17 42 | -11/Scrapyard | Discovered new exit (range 14) 80 | -11/Scrapyard | Entered Materials 112 | -10/Materials | Discovered new exit (range 7) 235 | -10/Materials | Discovered new exit (range 14) 318 | -10/Materials | Discovered new exit (range 16) 325 | -10/Materials | Build established: Mutant 432 | -10/Materials | Discovered new exit (range 7) 758 | -10/Materials | Entered Mines 799 | -10/Mines | Core integrity fell below 50% 831 | -10/Mines | Lost 6 parts (1p2n1u2w) 854 | -10/Mines | Learned location of Zion (-6) 1208 | -10/Mines | Assisted by bots powering up and referring to "LRC-V3" 1227 | -10/Mines | Build established: Scavenger-Mutant 1327 | -10/Mines | Discovered new exit (range 4) 1343 | -10/Mines | Entered Materials 1343 | -9/Materials | Accompanied by 3 allies 1343 | -9/Materials | Evolved 2 slots: Utility x2 1712 | -9/Materials | Central database locked down 1776 | -9/Materials | Identified exit to Materials 2048 | -9/Materials | Build established: Mutant 2128 | -9/Materials | Discovered new exit (range 6) 2147 | -9/Materials | Identified exit to Mines 2291 | -9/Materials | Entered Mines 2316 | -9/Mines | Assembled infested the area 2321 | -9/Mines | Assisted by a Guerilla fighting off Assembled 2334 | -9/Mines | Met a Derelict bent on vengeance 2335 | -9/Mines | Learned location of 1 exit from Materials 2393 | -9/Mines | Deemed a non-threat by the Exiles lab entrance 2393 | -9/Mines | Discovered new exit (range 5) 2396 | -9/Mines | Identified exit to Exiles 2397 | -9/Mines | Entered Exiles 2423 | -9/Exiles | Met 8R-AWN 2443 | -9/Exiles | Met EX-HEX 2479 | -9/Exiles | Met EX-BIN 2492 | -9/Exiles | Aligned with FarCom system 2493 | -9/Exiles | Given EX-Vault access code 2522 | -9/Exiles | Opened EX-Vault 2536 | -9/Exiles | Found AWS/Thermal 2558 | -9/Exiles | Warned to stay clear of 0b10 Research branches 2594 | -9/Exiles | Met EX-DEC 2638 | -9/Exiles | Discovered new exit (range 12) 2648 | -9/Exiles | Identified exit to Mines 2649 | -9/Exiles | Left Exiles lab with AWS/Thermal 2649 | -9/Exiles | Entered Mines 2729 | -8/Mines | Discovered exit to Materials (range 10) 2740 | -8/Mines | Entered Materials 2740 | -8/Materials | Evolved 2 slots: Utility x1, Weapon x1 2741 | -8/Materials | Identified exit to Factory 3652 | -8/Materials | Central database locked down 4484 | -8/Materials | Entered Factory 4484 | -7/Factory | Evolved 2 slots: Propulsion x1, Utility x1 4582 | -7/Factory | Build established: Hacker-Mutant 5064 | -7/Factory | Identified exit to Factory 5300 | -7/Factory | Discovered new exit (range 3) 5302 | -7/Factory | Identified exit to Storage 5316 | -7/Factory | AWS/Thermal suddenly broke down 5620 | -7/Factory | Discovered new exit (range 15) 5620 | -7/Factory | Entered another Factory area 5620 | -6/Factory | Evolved 2 slots: Utility x2 6293 | -6/Factory | Build established: Hacker-Assassin 6467 | -6/Factory | Identified exit to Factory 6629 | -6/Factory | Build established: Hacker-Mutant 6797 | -6/Factory | Discovered new exit (range 6) 6800 | -6/Factory | Identified exit to Extension 7009 | -6/Factory | Entered another Factory area 7009 | -5/Factory | Evolved 2 slots: Power x1, Utility x1 7052 | -5/Factory | Identified exit to Factory 7448 | -5/Factory | Entered another Factory area 7448 | -4/Factory | Evolved 2 slots: Propulsion x1, Utility x1 8150 | -4/Factory | Repaired Arm. Huge Wheel 8190 | -4/Factory | Repaired Great Maul 8634 | -4/Factory | Identified exit to Upper Caves 8654 | -4/Factory | Discovered new exit (range 14) 8663 | -4/Factory | Central database locked down 8675 | -4/Factory | Identified exit to Research 8677 | -4/Factory | Entered Research 8677 | -3/Research | Evolved 2 slots: Utility x2 8932 | -3/Research | Build established: Hacker-Assassin 8958 | -3/Research | Central database locked down 9428 | -3/Research | Spotted B-90 Cyclops 9490 | -3/Research | Identified exit to Armory 9490 | -3/Research | Identified exit to Quarantine 9655 | -3/Research | Lost 7 parts (1p2n1u3w) 9690 | -3/Research | Identified exit to Research 9931 | -3/Research | Build established: Hacker-Skirmisher 10723 | -3/Research | System corruption reached 10% 10757 | -3/Research | Build established: Hacker-Gunner 10943 | -3/Research | Entered another Research area 10943 | -2/Research | Evolved 2 slots: Utility x2 11329 | -2/Research | Discovered new exit (range 6) 11335 | -2/Research | Identified exit to Testing 11629 | -2/Research | Build established: Scavenger-Gunner 11716 | -2/Research | System corruption reached 10% 11773 | -2/Research | Core integrity fell below 50% 11808 | -2/Research | Lost 16 parts (2p3n8u3w) 12004 | -2/Research | Core integrity fell below 20% 12030 | -2/Research | Discovered exit to Testing (range 8) 12034 | -2/Research | Entered Testing 12035 | -2/Testing | Maximum security lockdown engaged 12060 | -2/Testing | Lost 7 parts (1p1n5u) 12233 | -2/Testing | Found Fusion Bomb Launcher 12258 | -2/Testing | Destroyed by H-88 Terminator with Heavy Machine Gun Last Messages --------------- 12242_ H-88 Terminator destroyed. 12243_ Penetrated by Slug. 12243_ Critical hit (Destroy). 12243_ Centrium Greatsword destroyed. 12244_ M-36 Artificer destroyed. 12246_ Destroyed Adv. Phase Shifter. 12246_ Q-thruster destroyed. 12246_ Destroyed Q-thruster. 12248_ Penetrated by Slug. 12251_ Fusion Bomb Launcher destroyed. 12254_ System corrupted: Energy discharge (-21). 12254_ Acquired Prototype Ballistic Gun. 12254_ Identified Adv. KE Penetrator. 12254_ Faulty integration triggers meltdown. 12254_ Adv. Signal Interpreter damaged (-4). 12254_ Adv. Target Analyzer damaged (-2). 12255_ Slug penetrates Wall. 12257_ The unstable cave ceiling collapses. 12257_ Acquired Hvy. Quantum Rifle. 12258_ Penetrated by Slug. Map ----- +----------------------------------------------------+ | ??# " / " "??# #?"" | | ??# = #????????# #??? | | ??# == #????????# #### | | ??# #######????????# | | ??# #??????????????# | | ??# #????########### | | ??# #????? # | | ??# #????# """ """ # #### | | ??# #????# """ """ # #??? | | ??# ###### """ """ # #??? | | ?## # # """ # #??? | | ## # """ + #??? | | # # ] # #### | | # %# # # # | | # ########### # | | # ######### + | | # # | | # """ """?# + | | = """ """?# # | | # h """ """ ######### | | #???????# | | # * #???????# | | # = #???????# | | #####;;#############???????# | | # =| ] * #?????????????# | | # !@ #?????????????#### | | # #????????????????? | | # "" """ #????????????????? | | # [ """S""" #????????????????? | | ##############????????????????? | | | | | | | | | | | | | | | | | | | | | | | | | | | | | | | | | | | | | | | | | +----------------------------------------------------+ Best States ------------- Heat Dissipation 81 Energy Generation 41 Energy Capacity 445 Matter Stores 300 Matter Capacity 300 Sight Range 22 Robot Scan Range 14 Terrain Scan Range 24 Terrain Scan Density 10 Additional Mass Support 16 Corruption Block 8 Armor Coverage 450 Utility Shielding 66 Evasion (%) 74 Targeting Accuracy 8 Target Analysis 12 Recoil Reduction 7 Energy Filtering 50 Kinecelleration 40 Offensive Hacking 30 Defensive Hacking 12 Item Schematics ----------------- Wheel | -8/Materials | Scanalyzed Com. Wheel | -8/Materials | Scanalyzed Hacking Suite | -8/Materials | Scanalyzed Hvy. Ion Engine | -8/Materials | Scanalyzed Imp. Ion Engine | -8/Materials | Scanalyzed Imp. Light Armor Plating | -8/Materials | Scanalyzed Assault Cannon | -8/Materials | Scanalyzed Imp. Grenade Launcher | -8/Materials | Scanalyzed Arm. Huge Wheel | -6/Factory | Scanalyzed Centrium Wheel | -4/Factory | Scanalyzed KE Penetrator | -4/Factory | Scanalyzed Imp. Target Analyzer | -4/Factory | Scanalyzed Cmb. Antigrav System | -4/Factory | Hacked Robot Schematics ------------------ R-10 Processor | -4/Factory | Hacked Fabricated ------------ Nothing Repaired ---------- Arm. Huge Wheel | 41% | -4/Factory Great Maul | 27% | -4/Factory Studied --------- Com. Wheel | -6/Factory | Hacked Chainsword | -6/Factory | Hacked Hpw. Shotgun | -6/Factory | Hacked Centrium Wheel | -4/Factory | Hacked Arm. Huge Wheel | -4/Factory | Hacked KE Penetrator | -4/Factory | Hacked Great Maul | -4/Factory | Hacked Linear Accelerator | -3/Research | Hacked Lgt. Deuterium Engine | -3/Research | Hacked Wave Gun | -3/Research | Hacked Alien Tech Used ----------------- None Achievements -------------- Bumper Bots Drive-By Ew, Corruption Fancy Inventory For Emergencies Only Heavy Suspicion Hornet's Nest Overwhelming Sixth Sense That Tickles We Love MA You Again Challenges ------------ None Game ------ Seed ThrowingDeflectorBay Manual? 0 Play Time 03:29:33 Cumulative 101.5 hours Start 2025.10.23 @ 05:57:15 End 2025.10.27 @ 05:01:27 Sessions 11 Manual Loads 0 Difficulty Rogue Special Mode None Game No. 97 Rogue 97 Adventurer 0 Explorer 0 Win Type - Total 0 Types 0/0/0/0/0/0/0/0/0/0 Lore% 21 Gallery% 42 Achievement% 23 Wizard Run 0 Options --------- Layout 1 ASCII 0 Keyboard 1 Movement Numpad Keybinds 0 Fullscreen 1 Font 32/SmallcapsGlow Map View 77x35 Zoom Use 0% Tactical HUD 1 Map Filters NONE Filters NONE Steam 1 RUN: 9c776cbd-c8f2-4707-8136-38442514cd8c